{"text_format":"3","workbook":"xlsx","n_sheets":4,"sheets":["领导班子","中层","基层","Sheet1"],"not_rendered":{"defined_names":9},"read":"whole","date_system":"1900"}

{"sheet":"领导班子","index":0,"n_rows":11,"n_cols":9,"rows_kept":11,"merged":[[0,0,0,8],[1,0,2,0],[1,1,2,1],[1,2,2,2],[1,3,2,3],[1,4,2,4],[1,5,2,5],[1,6,2,6],[1,7,2,7],[1,8,2,8]]}
["惠州市惠城区国有资本投资运营有限公司下属企业公开招聘岗位表(领导班子）"]
["序号","招聘单位","工作地点","招聘部门","招聘岗位","招聘\n数量","岗位职责","任职要求","年薪范围"]
[]
[1,"惠州市汇城建筑工程管理有限公司","惠州市麦地路51号5楼","领导班子","副总经理",1,"1、协助总经理对公司项目进行管理和运作，确保制度和流程有效执行,项目计划进度、质量、安全和成本控制，保证经营目标的实现。\n2、负责组织制定公司的发展规划、编报建筑公司年度工作计划和工作总结，指挥、督促并检查下属各部门完成各项工作。\n3、主持、推动关键管理流程和规章制度，及时进行组织和流程优化调整。\n4、主要负责全面统筹项目工程的技术指导、工程质量、安全施工、成本控制等方面的管理工作。\n5、负责主持审核项目工程的图纸设计、施工技术方案和施工进度计划，并对工程管理人员的贯彻执行情况进行监督检查。\n6、参与工程预算，负责审核、控制项目建设成本，并对其结果负责。\n7、负责工程项目相关合同的审核审批，并对其结果负责。\n8、负责处理解决施工中出现的重大技术、质量问题及其他难题，并按公司制定的改进措施督促落实。\n9、充分发挥专业知识，根据公司的规定和指导方针，及时提出完善工程管理体系、降低成本、提升效率的合理化建议。\n10、按照公司的发展战略，开拓区域市场，完成年度各项经营指标。\n11、负责协调处理好相关工程项目对上、对外的沟通联络工作。\n12、完成上级领导安排的其他工作。","1、年龄、学历、专业、技能及职称要求:全日制本科以上学历，45周岁以下，土木类、建筑类等建筑工程相关专业;须持中级工程师证或二级建造师证，持有高级工程师证或一级建造师证者优先。\n2、工作经验要求：5年以上建筑工程行业工作经验或3年以上大型建筑施工企业同类管理经验；具备相应的管理知识、经济学知识、建筑专业知识等。\n3、能力要求:了解行业发展趋势,精通工程技术、安全生产、成本合约、质量进度等工程关键工作事项与要素；具有一定的领导能力、计划与执行能力;思维敏捷，具有市场竞争及其信息综合判断能力；对项目工程的进度和质量具有良好的把控能力。\n4、其他要求：中共党员优先，工作积极主动，具备独立完成岗位职责的能力，具有较强的语言表达能力、组织协调能力、逻辑思维清晰；具有较强的工作责任心和团队合作意识；具有良好的思想品德和道德素质，身体健康。","约16-18万/年"]
[2,"惠州市惠城区德正投资有限公司","西湖大剧院","领导班子","副总经理",1,"1、协助总经理制定公司发展战略规划、年度经营计划，依据战略分解各阶段运营计划并全程监督落地实施。\n2、协助总经理组织拟定公司年度工作计划，统筹协调资源，确保高质量完成上级单位下达的经营与管理目标。\n3、协助召开总经理办公会议、公司例会等重要会议，参与重大事项讨论决策，部署重点工作任务，跟进会议决策执行进度与成效。\n4、搭建并维护与上级单位的高效沟通桥梁，定期、及时、准确汇报公司经营活动中的重大事项与关键进展。\n5、构建公司内部高效沟通机制，协调平衡各部门关系，打破部门壁垒，促进跨部门协作与资源共享。\n6、定期组织内部会议，深度参与公司人才梯队建设、企业文化塑造工作，提升团队凝聚力与战斗力。\n7、协助总经理开展财务管理工作，参与预算编制、经营决策及利润分配等工作，保障公司资产保值增值 。\n8、履行上级单位授权或公司制度规定的其他相关职责，完成总经理交办的临时性重要任务。","1、年龄、学历、专业、技能及职称要求:全日制本科及以上学历，45周岁以下，经济学、理学、工学、管理学、法学等相关专业毕业。\n2、工作经验要求：5年以上资产/物业行业工作经验或3年以上大型企业同类管理经验。\n3、能力要求:具备物业管理的基础理论知识及专业素养，熟练掌握国家相关政策法规；擅长与政府各部门、各行政单位建立良好的关系，擅长各级各部门的沟通协调工作。\n4、其他要求：中共党员优先，工作积极主动，具备独立完成岗位职责的能力，具有较强的语言表达能力、组织协调能力、逻辑思维清晰；具有较强的工作责任心和团队合作意识；具有良好的思想品德和道德素质，身体健康。","约16-18万/年"]
[3,"惠州市惠城区投资管理有限公司","惠城区鸿昌路广厦新苑","领导班子","副总经理",1,"1、战略规划：协助总经理制定投资战略、经营计划，参与决策，分解目标并推进执行，确保战略落地。\n2、投资管理：负责基金、政府类投资等项目的全流程运作，涵盖调研筛选、尽职调查、谈判交易及投后管理，把控风险，实现收益目标。\n3、 团队建设：组建管理投资团队，制定考核标准，培养人才，提升团队专业能力与工作效能。\n4、 财务风控：参与财务预算与资金管理，建立风控体系，审核投资分析报告，提供决策支持。\n5、外部协作：维护政府、金融等外部关系，拓展合作，推动项目落地，提升公司行业影响力。\n6、完成上级领导交办的其他任务。","1、学历、年龄、专业、技能及职称要求:全日制本科及以上学历；45周岁以下，经济学、金融学、管理学、理学、工学、法学等相关专业毕业。\n2、工作经验要求：5年以上投融资行业工作经验或3年以上同类型企业同等管理经验。\n3、能力要求:熟悉投资全流程，有成功项目案例；具备战略规划、团队管理、沟通谈判及风险控制能力，学习创新能力强；掌握金融财务法律知识，精通投资分析，具备报告撰写与数据分析能力，熟练使用办公及分析软件。\n4、其他要求:中共党员优先，工作积极主动，具备较强的工作责任心、上进心和风险意识，爱岗敬业、认真细致、注重团结合作；具有良好的思想品德和道德素质，身体健康。","约16-18万/年"]
[4,"惠州市惠城区领航城市运营服务有限公司","河南岸华洋楼","领导班子","副总经理",1,"1、协助总经理制定公司的长期发展战略、年度经营计划和预算方案，分解落实经营目标，并监督执行情况，定期向总经理汇报业务进展和经营成果。\n2、统筹环卫业务全流程运营，优化作业流程，提升运营效率和服务质量。\n3、研究环卫市场动态、行业政策及竞争对手情况，挖掘市场机会，提出业务拓展方案，推动新项目的开发、投标和落地。\n4、环卫服务项目的全生命周期管理，确保项目按时保质完成，实现预期经济效益和社会效益。\n5、分管部门的团队建设，包括人员培训、绩效考核等工作，打造专业、高效的环卫作业和管理团队。\n6、统筹合理调配人力、设备、物资等资源，确保环卫作业有序开展；建立设备维护保养体系，保障环卫车辆、设施设备的正常运行。\n7、建立健全公司安全生产管理制度，监督落实安全生产措施，组织安全培训和应急演练，预防和处理安全事故，确保作业安全。\n8、制定环卫服务质量标准和考核体系，定期检查、评估作业质量，推动服务质量持续改进，提升客户满意度和公司品牌形象。\n9、加强与政府主管部门、街道社区、相关企业等的沟通协调，建立良好合作关系，争取政策支持和业务资源；妥善处理与周边居民的关系，及时解决投诉和纠纷。\n10、完成上级领导交办的其他任务。","1、学历、年龄、专业、技能及职称要求:全日制本科及以上学历；45周岁以下，经济学、理学、工学、管理学、法学等相关专业毕业。\n2、工作经验要求：5年以上环卫或物业行业工作经验或3年以上大型环卫企业同类管理经验。\n3、能力要求:具备相应的管理知识、经济学知识、环卫专业知识等，熟悉经济政策和相关政策法规。具备较强沟通能力、协调能力、规划与统筹能力、决策与执行能力等。\n4、其他要求:中共党员优先，工作积极主动，具备较强的工作责任心、上进心和风险意识，爱岗敬业、认真细致、注重团结合作；具有良好的思想品德和道德素质，身体健康。\n\n\n","约16-18万/年"]
["5","惠州市惠城区惠林产业投资有限公司","惠城区横沥镇马坌村紫惠高速出口处","领导班子","副总经理",1,"1、 协助总经理制定公司的长期战略规划与年度经营计划，并确保计划有效执行与落实，定期向总经理汇报工作进展与成效 。\n2、 负责深入开展公司各类投资项目与土地整治市场调研，分析市场动态、政策法规及行业趋势，挖掘潜在业务机会，提出业务拓展方向和项目投资建议。\n3、负责公司各类项目的全流程管理，统筹土地整治项目的规划设计、工程施工、验收等环节，保障项目按时、高质量完成。\n4、建立并维护与政府部门、金融机构、合作伙伴等的良好合作关系，为公司业务开展争取政策支持、资金支持和资源保障，积极拓展业务合作渠道 。\n5、负责所分管团队的组织建设、培训发展、绩效考核等工作，打造高效、专业的团队；根据公司业务发展需求，合理配置人力资源，明确团队成员职责分工，激发员工工作积极性和创造力 。\n6、协助总经理建立健全公司风险防控体系，对公司业务中的各类风险进行识别、评估和监控，制定风险应对策略和预案，有效防范和化解风险，保障公司资产安全 。\n7、加强与公司其他部门的沟通协作，协调解决业务开展过程中出现的问题和矛盾，促进公司内部信息流通和协同工作，提升公司整体运营效率 。\n8、完成上级领导交办的其他任务。","1、学历、年龄、专业、技能及职称要求:全日制本科及以上学历；45周岁以下，经济学、理学、工学、管理学等相关专业毕业。\n2、工作经验要求：5年以上项目拓展/开发/运营或投融资工作经验，或3年以上同类型企业同等管理经验。\n3、能力要求:；具备相应的管理知识、经济学知识、工程知识等，具有先进的管理理念；接受过企业管理等方面培训，在团队管理方面有较强的领导技巧和管理能力；熟悉企业全面运作，企业经营管理、各部门工作流程；具有较强的领导能力、出色的人际交往和社会活动能力。\n4、其他要求:中共党员优先，工作积极主动，具备较强的工作责任心、上进心和风险意识，爱岗敬业、认真细致、注重团结合作；具有良好的思想品德和道德素质，身体健康。","约16-18万/年"]
["6","广东融城建设工程有限公司","惠州市麦地路51号5楼","领导班子","副总经理",1,"1、协助总经理管理运作公司项目，把控进度、质量、安全与成本，保障经营目标达成。\n2、制定公司发展规划、年度计划及总结，督导各部门工作。\n3、推动管理流程与制度建设，优化组织与流程。\n4、落实公司制度与项目管理措施，管理考核人员。\n5、统筹项目技术、质量、安全、成本等管理工作。\n6、审核项目图纸、技术方案与进度计划并监督执行。\n7、参与预算，审核控制项目建设成本。\n8、审核审批工程项目合同。\n9、解决施工重大技术、质量等难题并督促改进。\n10、提出完善工程管理、降本增效的建议。\n11、开拓区域市场，完成年度经营指标。\n12、协调工程项目内外沟通联络。\n13、完成上级交办的其他任务。","1、年龄、学历、专业、技能及职称要求:全日制本科及以上学历，45周岁以下，土木类、建筑类等建筑工程相关专业，持中级及以上工程师证、一级造价师证或二级及以上建造师证。\n2、工作经验要求：5年以上建筑工程行业工作经验或3年以上大型建筑施工企业同类管理经验；具备相应的管理知识、经济学知识、建筑专业知识等。\n3、能力要求:具有较强的领导力、组织管理能力、逻辑管理能力和沟通协调能力。熟悉建筑行业的法律法规、工程管理。\n4、其他要求：中共党员优先，工作积极主动，具备独立完成岗位职责的能力，具有较强的组织协调能力、逻辑思维清晰；具有较强的工作责任心和团队合作意识；具有良好的思想品德和道德素质，身体健康。","约16-18万/年"]
["7","广东坤金工程建设有限公司","惠州市麦地路51号5楼","领导班子","副总经理",1,"1、协助总经理管理运作公司项目，把控进度、质量、安全与成本，保障经营目标达成。\n2、制定公司发展规划、年度计划及总结，督导各部门工作。\n3、推动管理流程与制度建设，优化组织与流程。\n4、落实公司制度与项目管理措施，管理考核人员。\n5、统筹项目技术、质量、安全、成本等管理工作。\n6、审核项目图纸、技术方案与进度计划并监督执行。\n7、参与预算，审核控制项目建设成本。\n8、审核审批工程项目合同。\n9、解决施工重大技术、质量等难题并督促改进。\n10、提出完善工程管理、降本增效的建议。\n11、开拓区域市场，完成年度经营指标。\n12、协调工程项目内外沟通联络。\n13、完成上级交办的其他任务。","1、年龄、学历、专业、技能及职称要求:全日制本科及以上学历，45周岁以下，土木类、建筑类等建筑工程相关专业，持中级及以上工程师证、一级造价师证或二级及以上建造师证。\n2、工作经验要求：5年以上建筑工程行业工作经验或3年以上大型建筑施工企业同类管理经验；具备相应的管理知识、经济学知识、建筑专业知识等。\n3、能力要求:具有较强的领导力、组织管理能力、逻辑管理能力和沟通协调能力。熟悉建筑行业的法律法规、工程管理。\n4、其他要求：中共党员优先，工作积极主动，具备独立完成岗位职责的能力，具有较强的组织协调能力、逻辑思维清晰；具有较强的工作责任心和团队合作意识；具有良好的思想品德和道德素质，身体健康。","约16-18万/年"]
[{"$nulls":4},"总计",{"$f":"SUM(F4:F10)","v":7}]

{"sheet":"中层","index":1,"n_rows":7,"n_cols":17,"rows_kept":7,"hidden":true,"merged":[[0,0,0,16],[1,0,2,0],[1,1,2,1],[1,2,2,2],[1,3,2,3],[1,4,2,4],[1,5,2,5],[1,6,2,6],[1,7,2,7],[1,8,2,8],[1,9,2,9],[1,10,2,10],[1,11,2,11],[1,12,1,16]]}
["惠州市惠城区国有资本投资运营有限公司公开招聘岗位表（中层管理人员）"]
["序号","招聘单位","工作地点","招聘部门","招聘岗位","员额","现有\n人数","需求\n数量","岗位职责","任职要求","薪资范围","年薪范围（对外发布）","申请增补原因"]
[{"$nulls":12},"离职补缺","岗位调动","扩展编制","储备人才","备注说明"]
[1,"惠州市惠城区国有资本投资运营有限公司","惠城区白泥路7号","经营管理部","副经理",1,0,1,"1、负责部门团队管理，负责组织起草部门年度计划、部门工作总结；\n2、负责本部门与其他部门的跨部门协调、沟通工作。\n3、负责组织召开总公司各类经营分析会议。\n4、负责组织经营管理制度及办法，完善经营管理流程，组织实施并监督检查各项制度和流程的贯彻执行情况。\n5、负责组织编制公司经营计划，组织下属企业制订经营计划和目标调整方案，组织检查下属企业的经营计划完成情况。\n6、负责对下属企业的经营数据、总结、报告进行收集分析,了解、跟踪和评估下属企业年度经营计划的进展执行情况，结合内外部环境以及下属企业运营状况，适时提出调整建议。\n7、负责监督、指导下属企业项目的进度、质量、安全工作。\n8、完成上级领导交办的其他工作。","1、学历、年龄、专业、技能及职称要求:全日制本科及以上学历，年龄45周岁以下，经济学、理学、工学、管理学等相关专业。\n2、工作经验要求：5年以上中高层企业管理经验或3年以上大型企业同类部门经营管理经验。\n3、能力要求:具备经营规划、市场研究、业务管控、计划组织、目标制定与过程监控等经营专业能力。\n4、其他要求:中共党员优先，工作主动积极，具备独立完成岗位职责的能力，具有较强的文字写作、沟通表达、逻辑分析、组织协调、团队协作能力；具有良好的思想品德和道德素质，身体健康。","10400-11500元/月","约15-17万/年",{"$nulls":3},"√"]
["3","广东科筑建设有限公司","惠州市麦地路51号5楼","工程部","副经理",1,0,1,"1、按照公司的发展战略，制定本公司对项目的工程管理、检查工作计划；制定公司工程管理制度及相关规定要求；\n2、负责编制项目策划，拟定并审核各项指标；参与项目成本指标的编制，审核成本指标的合理性，并从生产角度分析项目成本指标的组成；\n3、负责审核项目的总进度计划和年度生产计划、项目月度生产计划及执行情况、项目赶工措施，并提出合理化建议；负责管理项目部日常的生产进度、质量安全、技术资料等的现场执行计划情况及指导\n4、掌握跟进各项目收付款动态，及时跟进项目进度款收款情况，审核项目班主的资金计划。负责审核项目招标文件、参与谈判、提供合理的分包单价建议；负责审批材料采购申请和周转材料调拨；\n5、当出现重大质量、安全事故时参与事故的处理及现场取证，参与编写事故处理方案；\n6、参与制定各项目部的人员架构，对项目管理人进行绩效考核，组织项目管理人员的职业技术水平和人才梯队建设；                                                                                7、完成上级领导交办的其他任务。","1、年龄、学历、专业、技能及职称要求:全日制本科及以上学历，35周岁以下，土木类、建筑类等建筑工程相关专业；持有建筑相关专业职业资格证书或中级及以上职称。\n2、工作经验要求：5年以上建筑行业工程经验或3年以上工程管理相关工作经验;熟悉工程相关行业法规，有丰富的市政、房建等专业工程管理经验。\n3、能力要求:具备项目施工管理的专业理论知识。\n4、其他要求：中共党员优先，工作积极主动，具备独立完成岗位职责的能力，具有较强的语言表达能力、组织协调能力、逻辑思维清晰；具有较强的工作责任心和团队合作意识；具有良好的思想品德和道德素质，身体健康。","7800-8000元/月","约11-12万/年",{"$nulls":3},"√"]
[4,"惠州现代农业示范区投资有限公司","惠城区横沥镇马坌村紫惠高速出口处","工程部","副经理",1,0,1,"1、负责项目全程工作，参与工程项目管理策划，与各参建方沟通对接；\n2、制定项目进度计划、倒排工期表，做好施工现场协调工作；\n3、落实项目进度计划，负责项目现场监督，及时与公司汇报工作的进展情况，执行公司的规章制度；\n4、严格控制现场安全生产，控制项目质量；\n5、负责与相关部门的沟通协调工作。","1、年龄、学历、专业、技能及职称要求:全日制本科及以上学历，35周岁以下，土木类、建筑类等建筑工程相关专业；持有建筑相关专业职业资格证书或中级及以上职称。\n2、工作经验要求：5年以上建筑行业工程经验或3年以上工程管理相关工作经验;熟悉工程相关行业法规，有丰富的市政、房建等专业工程管理经验。\n3、能力要求:具备项目施工管理的专业理论知识。\n4、其他要求：中共党员优先，工作积极主动，具备独立完成岗位职责的能力，具有较强的语言表达能力、组织协调能力、逻辑思维清晰；具有较强的工作责任心和团队合作意识；具有良好的思想品德和道德素质，身体健康。","7800-8000元/月","约11-12万/年",{"$nulls":3},"√"]
[{"$nulls":4},"总计",{"$f":"SUM(F4:F6)","v":3},{"$f":"SUM(G4:G6)","v":0},{"$f":"SUM(H4:H6)","v":3}]

{"sheet":"基层","index":2,"n_rows":15,"n_cols":17,"rows_kept":15,"hidden":true,"merged":[[0,0,0,16],[1,0,2,0],[1,1,2,1],[1,2,2,2],[1,3,2,3],[1,4,2,4],[1,5,2,5],[1,6,2,6],[1,7,2,7],[1,8,2,8],[1,9,2,9],[1,10,2,10],[1,11,2,11],[1,12,1,16]]}
["惠州市惠城区国有资本投资运营有限公司公开招聘岗位表（基层人员）"]
["序号","招聘单位","工作地点","招聘部门","招聘岗位","员额","现有\n人数","需求\n数量","岗位职责","任职要求","薪资范围","年薪范围（对外发布）","申请增补原因"]
[{"$nulls":12},"离职补缺","岗位调动","扩展编制","储备人才","备注说明"]
[1,"惠州市惠城区国有资本投资运营有限公司","惠城区白泥路7号","经营管理部","项目管理专员",2,2,1,"1、负责公司城乡综合、建设工程、公共运营服务、产业综合开发等项目的监督管理。\n2、负责各项目总目标、组织方案、进度计划、项目完成量、项目完成质量等要素监管。\n3、负责定期对项目进行巡检。\n4、负责组织排查安全隐患，并监管整改情况。\n5、负责施工项目的规范性管理。\n6、完成上级领导交办的其他工作。","1、 年龄、学历、专业、技能及职称要求:全日制本科及以上学历，年龄35周岁以下，经济学、理学、工学等相关专业。\n2、 工作经验要求：3年以上工作经验，其中1年项目管理经验。\n3、 能力要求:具备有效掌握项目各阶段各维度工作达成和质量把控的能力；具备项目巡检和安全隐患排查能力。\n4、其他要求：工作主动积极，具备较强的沟通能力、协调能力和团队合作精神；具有良好的思想品德和道德素质，身体健康。","5500-6500元/月","约7-9万/年",{"$nulls":3},"√","计划调动一名项目管理员至工程公司，补充一名项目管理类人员"]
[2,"惠州市惠城区国有资本投资运营有限公司","惠城区白泥路7号","监察审计部","审计专员",2,1,{"$f":"F5-G5","v":1},"1、协助完善部门审计流程。\n2、协助拟订审计计划、审计方案。\n3、负责开展财务收支审计、任中与任期经济责任审计、工程审计、预结算审计、专项审计、专项调查等审计工作。\n4、负责跟踪内部、外部审计报告、审计检查发现问题的整改工作。\n5、负责编制、检查、复核审计证据，做出单项审计评价意见。\n6、负责编写审计工作底稿，编制审计报告。\n7、负责整理、归档审计资料，管理审计档案。\n8、完成上级领导交办的其他工作。","1、学历、年龄、专业、技能及职称要求:全日制本科及以上学历，35周岁以下，审计、财会类专业；具有中级审计师或会计师职称；持有注册会计师证者优先；具备内/外审经验、国家审计经验者优先。\n2、工作经验要求：5年以上审计或财务经验，熟悉审计、税务等理论知识。\n3、能力要求:具备拟订审计计划方案的能力；具备独立完成一般审计工作与出具审计报告的能力。\n4、其他要求:工作主动积极，具有良好的文字表达能力、问题处理能力和协调能力；具有良好的思想品德和道德素质，身体健康。","6500-7500元/月","约9-10万/年",{"$nulls":3},"√"]
[3,"惠州市惠城区国有资本投资运营有限公司","惠城区白泥路7号","投资发展部","投资专员",2,0,1,"1、负责项目拓展，收集各类信息，寻找有投资价值的企业（包括重组、兼并和收购等）或项目。\n2、负责对拟投项目进行价值分析、评估、测算工作，确定投资项目的成本、收益和风险，制定投资方案，研究投后管理、项目退出等。\n3、负责对正式立项的项目组织开展尽职调查、法律分析、财务审计、资产评估等工作，提出资产定价建议，编制可行性研究报告，并参与投资谈判、合同或协议起草、修订，完成项目交割。\n4、负责产业基金的方案设计、发起、募集、设立、运作和管理等全部工作。\n5、负责与合作机构、开发企业、政府部门对接，完成拟投项目的审批。\n6、完成上级领导交办的其他工作。","1、学历、年龄、专业、技能及职称要求:全日制本科及以上学历，35周岁以下，投资、金融、财务相关专业；具备基金从业资格证书优先。\n2、工作经验要求：3年以上基金、证券、投资公司工作经验。\n3、能力要求:熟悉股权投资基金运作流程和投资方法，有较为扎实的法务、财务基础知识，熟悉资本市场各项政策法规；对项目的市场环境、法律风险、利润点和运营模式等有具有良好的分析能力。\n4、其他要求:工作主动积极，具有良好的沟通协调能力、合作精神；具备独立推动投资项目的能力；具有良好的思想品德和道德素质，身体健康。","6000-7500元/月","约8-10万/年",{"$nulls":3},"√"]
[4,"惠州市惠城区国有资本投资运营有限公司","惠城区白泥路7号","投资发展部","投资专员",2,0,1,"\n1、协助团队收集各类投资相关信息，通过多种渠道寻找潜在有投资价值的企业或项目线索，为项目拓展提供基础资料支持 。\n2、在上级指导下，参与拟投项目的初步价值分析、数据整理与简单测算工作，协助确定投资项目的基础成本、收益和风险要素。\n3、配合团队开展项目尽职调查、法律分析、财务审计、资产评估等工作，负责资料收集、数据统计等基础事务；协助编制可行性研究报告、投资方案等文档，参与投资谈判、合同起草修订等环节的准备工作。\n4、协助与合作机构、开发企业、政府部门进行初步对接，传递信息，跟进项目审批流程中的基础事项。\n5、完成上级领导交办的各类行政事务及其他辅助性工作。","1、年龄、学历、专业、技能及职称要求:全日制本科及以上学历，硕士研究生优先，35周岁以下，投资、金融、财务相关专业；具备基金从业资格证书优先。\n2、工作经验要求：应届毕业生，不限工作经验。\n3、能力要求:了解股权投资基金运作流程和投资方法，有较为扎实的法务、财务基础知识，了解资本市场各项政策法规；具备项目市场分析能力和法律风险评估能力，了解项目执行、利润点和运营模式。\n4、其他要求:工作主动积极，具有良好的沟通协调能力、合作精神；具备独立推动投资项目的能力；具有良好的思想品德和道德素质，身体健康。","3800-5500元/月","约5-7万/年"]
[5,"惠州市惠城区国有资本投资运营有限公司","惠城区白泥路7号","综合部","文书",1,2,1,"1.负责撰写公司工作计划、总结、报告等各种文字材料；\n2.负责公司规章制度的编制、校对和审定工作；\n3.负责会议纪要的编写、各类会议材料的组织、审核、把关工作；\n4.协助做好与相关部门的关系维护及沟通工作； \n5.完成领导交办的其他事务。","1、学历、年龄、专业要求:全日制本科及以上学历，35周岁以下，汉语言文学、秘书学、哲学、中文、新闻或行政管理等相关专业。\n2、工作经验要求：3年以上文书岗位工作经验，具有事业单位、央企国企同岗位工作经验优先。\n3、能力要求:具有良好的文字表达能力；熟练使用OFFICE各类办公软件\n4、其他要求:工作主动积极，具有良好的沟通协调能力、合作精神；具有良好的思想品德和道德素质，身体健康。","6000-7500元/月","约8-10万/年"]
[6,"惠州市汇城建筑工程管理有限公司","惠州市麦地路51号5楼","财务部","出纳（汇城公司）",2,1,1,"1、按公司财务制度规范处理日常费用报销及资金收支工作，严格审核原始凭证，确保各项业务及费用的合法性、合理性；\n2、负责收集和审核原始凭证，每日整理收、支完毕的单据，妥善保管并按照流程完整转交；\n3、负责日常现金、支票及票据的收付、保管；及时登记现金、银行日记账，定期核查各种往来款项，确保账账、账证、账表相符； \n4、管理所有银行账户，办理开设、变更、结算等相关业务；\n5、收取结算凭证，领取各银行回单及对账单等，完成定期对账，编制业务表；\n6、负责发票的开具、领购、核销、登记，认证及保管工作；\n7、登记工程收支台账登记、整理、更新工作，为收入成本提供原始财务数据； \n8、负责管理范围内的财务资料的整理、归档、装订、保管工作；\n9、协助财务负责人统筹处理所属三级公司日常资金管理及出纳相关工作；\n10、协助会计及部门负责人处理其他相关工作，完成上级领导交办的其他任务。","1、年龄、学历、专业、技能及职称要求:全日制本科及以上学历；35周岁以下，财会相关专业。\n2、工作经验要求：2年以上同行同岗工作经验，有建筑/地产行业相关从业者优先；有国企或建筑工程/地产从业经验优先。\n3、能力要求:熟悉国家法律法规和国家有关方针和政策，熟练操作财务软件及办公软件，持初级会计证及以上专业证书者优先。\n4、其他要求:工作积极主动，具备较强的工作责任心、上进心和风险意识，爱岗敬业、认真细致、注重团结合作；具有良好的思想品德和道德素质，身体健康。","5500-6000元/月","约7-9万/年",{"$nulls":3},"√","招聘1名出纳，汇城公司建工板块现有出纳一名，具体负责汇城公司、融城公司、科筑公司、长澈公司及子安公司共计5家公司的出纳工作。建筑板块出纳业务繁忙，每个项目均需开立农民工工资专户，代发农民工工资需到银行现场办理。目前几个公司涉及的银行账户共计55个，其中农民工工资账户共计34个。除日常工作外需及时更新各项目资金台账，且大部分业务要求到银行网点办理，此外建工板块应对各种检查较多，仅有一名出纳难以保持正常运转。"]
[7,"惠州市汇城建筑工程管理有限公司","惠州市麦地路51号5楼","综合部","经营信息化管理专员",0,0,1,"1、结合公司经营战略及管理需求，制定信息化发展规划与年度计划，确保信息化建设与业务发展、管理优化目标一致；统筹分析经营管理中的痛点问题，提出信息化解决方案，推动信息技术与经营管理深度融合。\n2、负责业务流程梳理与优化，基于经营管理需求推动系统建设、实施及升级改造；协调业务部门与技术团队，确保系统功能贴合经营管理实际，提升业务流程效率与管理精细化水平。\n3、建立经营数据管理体系，整合财务、运营、市场等多维度数据，形成标准化数据指标库；通过数据分析模型与可视化工具，为经营决策、绩效考核、风险预警等提供数据支持，辅助管理层制定科学决策。\n4、对接各业务部门，收集经营管理信息化需求，评估需求优先级并制定实施计划；推动信息化项目落地，协调资源解决项目推进中的问题，确保项目按期达成经营目标。\n5、制度与标准建设\n制定信息化管理制度与操作规范，明确数据使用、系统权限、安全管理等要求；监督制度执行情况，定期评估信息化对经营管理的支撑效果，提出持续改进方案。\n6、利用信息化系统开展经营数据分析，定期输出经营分析报告，评估业务运营效率与管理效能；通过信息化手段优化绩效考核体系，推动经营目标量化分解与动态监控。","1、学历、年龄、专业、技能及职称要求:全日制本科及以上学历，35周岁以下，计算机类、管理类、工程类等相关专业。\n2、工作经验要求：1年以上信息化运维、网络管理、经营管理或业务流程优化相关经验。\n3、能力要求:掌握信息化项目管理方法，能独立完成需求分析、方案设计与项目落地；具备流程优化与数据分析能力。逻辑清晰，能快速定位并解决网络、系统及终端设备问题；具备跨部门沟通能力，能独立对接第三方服务商并推动问题解决；主动学习新技术，适应信息化快速迭代的工作场景。\n4、其他要求:责任心强，能承受一定工作压力，具备团队协作精神。具有良好的思想品德和道德素质，身体健康。","5000-6000元/月","约7-9万/年",{"$nulls":3},"√","汇城公司综合部员额5人，内部竞聘后上岗4人，尚有1名空缺。"]
[8,"广东融城建设工程有限公司","惠州市麦地路51号5楼","成本部","招采专员",0,0,1,"1、参与供应商考察和考评活动，跟踪供应商入库情况；具备供应商管理能力，实时更新供应商名录，审查供应商资质，做好供应商的入库及分类管理工作，为供应商招采做基础准备；\n2、各类材料、设备的询价工作，配合完成控制价的审核；负责招标项目全流程，包括明确项目范围、规模、预算，审核修改招标文件，发布招标会签需求，组织现场开标，管理及归档招标备案资料。\n3、根据部门招采需求申报，修改审核申报内容，发起审批流程，编辑并下发各类成交通知书；\n4、实施各项劳务及材料招采工作，编制各类劳务分包、专业分包等招标文件、组织开标、评标、定标等工作;\n5、采购合同的起草、会签、审核、档案管理；负责建立合同档案，及其他各类函件等归档管理，；熟悉法务知识，熟悉并掌握合同法内容；\n6、完成上级领导交办的其他工作任务。","1、年龄、学历、专业、技能及职称要求:全日制本科及以上学历，35周岁以下，管理类、经济类及房地产行业相关专业。\n2、工作经验要求：具有大型房地产企业工作经历，具有3年以上招标采购工作经验。\n3、能力要求:了解工程材料市场行、主要工程施工工艺和预算；了解国家、省市、行业关于招投标法、合同法等相关法律法规及政策。\n4、其他要求:工作主动积极，具备独立完成岗位职责的能力，具有较强的文字写作、沟通表达、逻辑分析、组织协调、团队协作能力；具有良好的思想品德和道德素质，身体健康。","5500-6000元/月","约7-9万/年",null,null,"√"]
[9,"惠州市惠城区领航城市运营服务有限公司","河南岸华洋楼","财务部","会计（领航公司）",1,0,1,"1、负责公司全盘账务处理和会计核算工作,按月出具财务管理报表及财务分析报告。\n2、编制和执行财务预算，严格遵守经费开支范围和开支标准规定，合理使用资金，对各部门报销的原始票据进行审核。\n3、做好税务、财政、工商、审计等部门的相关业务对接工作。\n4、审核及监督经济事项的合法性及合理性，及时申报及缴纳应缴的各项款项。\n5、负责合并会计报表编制工作，负责年终财务会计报告出具工作。\n6、做好资金统筹管理工作，拟定资金计划、对资金调度进行管理，及时向上级汇报公司资金情况。\n7、实行会计监督，做好内部控制工作。\n8、做好会计资料的整理、保管，按会计档案制度要求存档。\n9、及时、准确核对每月收入数据并完成相关发票开具工作。\n10、负责企业日常及年终税费申报工作。\n11、完成上级交办的其他任务。\n","1、学历、年龄、专业、技能及职称要求:全日制本科及以上学历；35周岁以下，财会相关专业；具备初级会计师资格，具有中级或注册会计师职称者优先。\n2、工作经验要求：3年以上会计从业经验。\n3、能力要求:熟练掌握财务会计专业知识和技能，熟悉财经、会计、税务、金融等相关法律法规，能熟练使用财务软件；具备独立完成会计全盘账务处理、税务申报、财务测算和数据统计分析的能力。\n4、其他要求:工作积极主动，具备较强的工作责任心、上进心和风险意识，爱岗敬业、认真细致、注重团结合作；具有良好的思想品德和道德素质，身体健康。","5500-7000元/月","约7-10万/年","√",{"$nulls":3},"招聘1名会计，领航公司会计被优化，领航公司业务体量大，会计经常对接业务，与联合体合作方核对相关业务数据，且需对粮仓业务进行贷后管理及后续租金管理工作。"]
[10,"惠州市惠城区城投横沥绿色新型材料有限公司","惠州市惠城区省道S259横沥镇柯树排段1号","财务部","会计（横沥新型材料公司）",1,0,1,"1、负责公司全盘账务处理和会计核算工作,按月出具财务管理报表及财务分析报告。\n2、编制和执行财务预算，严格遵守经费开支范围和开支标准规定，合理使用资金，对各部门报销的原始票据进行审核。\n3、做好税务、财政、工商、审计等部门的相关业务对接工作。\n4、审核及监督经济事项的合法性及合理性，及时申报及缴纳应缴的各项款项。\n5、负责合并会计报表编制工作，负责年终财务会计报告出具工作。\n6、做好资金统筹管理工作，拟定资金计划、对资金调度进行管理，及时向上级汇报公司资金情况。\n7、实行会计监督，做好内部控制工作。\n8、做好会计资料的整理、保管，按会计档案制度要求存档。\n9、及时、准确核对每月收入数据并完成相关发票开具工作。\n10、负责企业日常及年终税费申报工作。\n11、协助财务负责人统筹处理所属公司财务会计核算工作。\n12、完成上级交办的其他任务。","1、学历、年龄、专业、技能及职称要求:全日制本科及以上学历；35周岁以下，财会相关专业；具备初级会计师资格，具有中级会计师职称、注册会计师资格者优先。\n2、工作经验要求：3年以上会计从业经验，具有国有企业建筑/地产行业相关从业经验者优先；\n3、能力要求:熟练掌握财务会计专业知识和技能，熟悉财经、会计、税务、金融等相关法律法规，能熟练使用财务软件；具备独立完成会计全盘账务处理、税务申报、财务测算和数据统计分析的能力。\n4、其他要求:工作积极主动，具备较强的工作责任心、上进心和风险意识，爱岗敬业、认真细致、注重团结合作；具有良好的思想品德和道德素质，身体健康。","5500-7000元/月","约7-10万/年","√",{"$nulls":3},"招聘1名会计，横沥搅拌站会计被优化，主要负责横沥搅拌站会计工作，需定期盘点物料进销存实际情况，需一名会计在现场进行核算及监督。"]
[11,"惠州市惠城区投资管理有限公司","惠城区鸿昌路广厦新苑","财务部","出纳（区投资管理公司）",1,0,1,"1、按公司财务制度规范处理日常费用报销及资金收支工作，严格审核原始凭证，确保各项业务及费用的合法性、合理性；\n2、负责收集和审核原始凭证，每日整理收、支完毕的单据，妥善保管并按照流程完整转交；\n3、负责日常现金、支票及票据的收付、保管；及时登记现金、银行日记账，定期核查各种往来款项，确保账账、账证、账表相符； \n4、管理所有银行账户，办理开设、变更、结算等相关业务；\n5、收取结算凭证，领取各银行回单及对账单等，完成定期对账，编制业务表；\n6、负责发票的开具、领购、核销、登记，认证及保管工作；\n7、登记相关项目收支台账登记、整理、更新工作，为收支情况提供原始财务数据；\n8、做好贷后资金管理工作及项目资金管理工作； \n8、负责管理范围内的财务资料的整理、归档、装订、保管工作；\n9、协助财务负责人统筹处理所属二三级公司日常资金管理及出纳相关工作；\n10、协助会计及部门负责人处理其他相关工作，完成上级领导交办的其他任务","1、年龄、学历、专业、技能及职称要求:全日制本科及以上学历；35周岁以下，财会相关专业。\n2、工作经验要求：2年以上行业相关岗位从业经验。\n3、能力要求:熟悉财经、会计、税务、金融和国有资产监管等相关法律法规；熟练操作财务软件、办公软件、持初级会计证及以上专业证书者优先。\n4、其他要求:工作积极主动，具备较强的工作责任心、上进心和风险意识，爱岗敬业、认真细致、注重团结合作；具有良好的思想品德和道德素质，身体健康。\n","5500-6000元/月","约7-9万/年",{"$nulls":3},"√","招聘1名出纳，主要负责投资公司、惠创、惠智、惠立、惠科、惠益、惠能、惠运、联和冷冻9家公司出纳工作。（惠智负责停车场项目、汽车线束产业园建设项目及东部汽车产业园项目，惠立负责光储充一体化项目、惠创负责利元亨项目、惠益负责党校项目运营及幼儿园项目、联和冷冻仍有与广铁合作的仓储租赁业务。）"]
[{"$nulls":4},"总计",{"$f":"SUM(F4:F14)","v":14},{"$f":"SUM(G4:G14)","v":6},{"$f":"SUM(H4:H14)","v":11}]

{"sheet":"Sheet1","index":3,"n_rows":14,"n_cols":11,"rows_kept":14,"hidden":true,"merged":[[2,4,10,4],[2,5,5,5],[2,6,3,6],[2,7,3,7],[2,8,3,8],[2,9,3,9],[4,6,5,6],[4,7,5,7],[4,8,5,8],[4,9,5,9],[11,4,11,5],[12,4,12,5],[13,4,13,8]]}
[]
[{"$nulls":4},"项目","明细","单位","数量","单价","合计","说明"]
[{"$nulls":4},"笔试","命制试题","套",6,5000,{"$f":"H3*I3","v":30000},"１、试题全部为客观题（公共基础知识、行政能力测试题、岗位专业知识）；"]
[{"$nulls":10},"２、项目管理专员1套题；投资专员1套题；文书1套题；招采专员1套题；信息化管理专员1套题；审计专员、会计、出纳1套题，共6套题。"]
[{"$nulls":6},"套",2,6500,{"$f":"H5*I5","v":13000},"１、试题为客观题+主观题2道(岗位相关的专业知识题)；"]
[{"$nulls":10},"２、经管副经理１套题；工程副经理1套题；成本副经理1套题,共3套题。"]
[{"$nulls":5},"印刷","份",{"$f":"30*14","v":420},10,{"$f":"H7*I7","v":4200},"预计每个岗30份，共14个岗，最终按笔试试题实际印刷份数结算。"]
[{"$nulls":5},"客观题阅卷","份",{"$f":"30*11","v":330},10,{"$f":"H8*I8","v":3300},"预计每个岗30份，共11个岗，按笔试试题实际阅卷份数结算。"]
[{"$nulls":5},"客观题+主观题阅卷","份",{"$f":"30*3","v":90},50,4500,"预计每个岗30份，共3个岗，按笔试试题实际阅卷份数结算。"]
[{"$nulls":5},"试题押送费","项",3,200,600,"负责试题保密押送，回收工作。按实际押送次数结算。"]
[{"$nulls":5},"工作人员劳务费","场",6,600,3600,"预计安排３场，每场安排2人，600元/人（负责试题押送、监考、巡考、试卷收发、考场纪律维持、身份核对确认等）；以实际参考人数确定场数，按实际安排场数结算。"]
[{"$nulls":4},"全程摄像监控",null,"项",1,3000,3000,"每个考场前后各安排一个摄像。"]
[{"$nulls":4},"项目服务费",null,"项",1,{"v":0.1,"d":"10%"},{"$f":"62200*0.1","v":6220},"负责招聘前中后期的沟通对接、项目策划、项目实施协调、后勤保障、物料等。按上述产生费用10%（含6%的税费）的比例计算。"]
[{"$nulls":4},"费用总计",{"$nulls":4},{"$f":"SUM(J3:J13)","v":68420},"/"]